bitfinex/quotes_SOLUSD_20251218
["timestamp","ask_amount","ask_price","bid_price","bid_amount"]
[1766049321157,6.14825495,122.95,122.92,3.89952023]
[1766049321360,14.28166641,122.95,122.92,3.89952023]
[1766049321570,0.67,122.95,122.93,3.81952023]
[1766049322046,0.67,122.95,122.92,3.89952023]
[1766049322350,0.67,122.94,122.92,3.81952023]
[1766049325172,0.67,122.95,122.93,3.81952023]
[1766049325758,8.80234156,122.97,122.94,3.81952023]
[1766049326360,0.67,122.96,122.94,3.81952023]
[1766049327480,0.67,122.98,122.95,3.83952165]
[1766049328682,0.67,122.98,122.96,3.81952023]
[1766049329581,0.67,122.97,122.95,3.81952023]
[1766049330581,8.13074233,122.99,122.95,3.81952023]
[1766049330761,0.67,122.98,122.95,3.81952023]
[1766049331353,8.23028585,123.0,122.96,3.81952023]
[1766049331663,8.8990376,123.02,122.99,3.81952023]
[1766049331986,0.67,123.01,122.98,3.81952023]
[1766049333460,0.67,123.0,122.98,3.81952023]
[1766049335281,0.67,122.99,122.94,8.92]
[1766049335482,0.67,122.99,122.95,3.81952023]
[1766049335868,0.67,122.98,122.94,12.73952023]
[1766049336483,0.67,122.98,122.94,8.92]
[1766049336684,0.67,122.98,122.95,3.81952023]
[1766049336985,0.67,122.97,122.95,3.81952023]
[1766049338880,0.67,123.0,122.96,3.81952023]
[1766049339080,0.67,123.0,122.97,3.81952023]
[1766049340882,0.67,123.0,122.96,3.81952023]
[1766049341390,0.67,122.99,122.96,3.81952023]
[1766049343691,0.67,122.99,122.95,3.83952023]
[1766049344276,0.69,122.98,122.94,8.92]
[1766049344479,0.69,122.98,122.94,12.73952023]
[1766049344678,0.69,122.98,122.94,12.75952023]
[1766049344884,0.69,122.98,122.94,12.73952023]
[1766049345895,0.69,122.97,122.94,12.73952023]
[1766049348111,8.82144912,122.98,122.95,0.02]
[1766049348706,0.69,122.97,122.94,12.73952023]
[1766049349808,0.69,122.97,122.94,8.92]
[1766049350100,0.69,122.97,122.94,12.73952023]
[1766049352095,0.69,122.99,122.96,3.83952023]
[1766049353203,0.69,122.99,122.96,3.81952023]
[1766049354306,0.69,122.99,122.95,0.02]
[1766049354509,0.69,122.99,122.96,3.81952023]
[1766049355486,0.69,122.99,122.97,3.81952023]
[1766049355810,0.69,123.0,122.98,3.81952023]
[1766049357703,0.69,123.0,122.97,0.02]
[1766049357896,0.69,123.0,122.97,3.83952023]
[1766049359199,0.65216914,123.0,122.97,3.83952023]
[1766049359396,17.14883284,123.02,122.98,3.87952023]
[1766049359601,8.22883284,123.02,122.99,0.06]
[1766049359810,8.22883284,123.02,122.98,3.87952023]
[1766049360013,8.22883284,123.02,122.99,0.06]
[1766049360313,8.22883284,123.02,122.98,3.87952023]
[1766049360511,8.22883284,123.02,122.98,3.81952023]
[1766049360697,0.1,123.02,122.99,3.81952023]
[1766049361097,8.22845042,123.03,123.01,3.81952023]
[1766049361098,0.1,123.03,123.01,3.81952023]
[1766049361298,0.79,123.03,123.01,3.81952023]
[1766049362008,0.79,123.03,123.0,3.87952023]
[1766049362199,0.79,123.03,123.0,3.81952023]
[1766049362794,0.79,123.03,123.0,3.87952023]
[1766049365909,0.79,123.03,122.99,3.81952023]
[1766049366114,0.69,123.02,122.99,3.87952023]
[1766049366787,0.69,123.02,122.97,29.67657343]
[1766049366788,0.79,123.03,123.01,3.81952023]
[1766049367118,0.79,123.03,123.0,0.06]
[1766049367119,0.69,123.02,123.0,3.81952023]
[1766049368615,0.69,123.02,122.99,8.98]
[1766049369118,0.69,123.02,123.0,3.81952023]
[1766049370995,0.69,123.02,123.0,3.81273574]
[1766049371190,8.81891461,123.02,123.0,3.81273574]
[1766049371391,0.69,123.01,122.99,3.81273574]
[1766049371591,0.69,123.01,122.98,8.92]
[1766049371805,0.69,123.01,122.98,14.2504087]
[1766049372732,0.69,123.01,122.98,14.3104087]
[1766049373103,14.2912733,123.01,122.98,14.3104087]
[1766049373301,8.81958304,123.01,122.98,14.3104087]
[1766049373502,8.81958304,123.01,122.98,12.93852948]
[1766049374003,0.72,123.0,122.97,8.92]
[1766049374418,0.72,123.0,122.98,2.44085652]
[1766049374832,0.72,123.0,122.96,10.43767296]
[1766049375000,30.89399049,123.01,122.96,11.42085652]
[1766049375001,0.72,122.98,122.96,11.42085652]
[1766049375210,8.85074233,122.99,122.96,21.85852948]
[1766049376342,8.1300813,123.0,122.96,12.87852948]
[1766049376504,0.72,122.99,122.96,21.79852948]
[1766049376832,0.72,122.96,122.92,11.42085652]
[1766049377133,0.72,122.96,122.92,21.79852948]
[1766049377498,2.44085652,122.95,122.9,2.50085652]
[1766049377710,0.72,122.94,122.9,11.42085652]
[1766049378122,8.63519864,122.95,122.91,0.06]
[1766049378337,8.13457641,122.94,122.9,11.42085652]
[1766049378635,0.72,122.93,122.9,11.36085652]
[1766049379049,0.72,122.93,122.89,2.44085652]
[1766049379223,0.72,122.92,122.88,11.36085652]
[1766049379541,0.72,122.92,122.88,11.42085652]
[1766049379918,0.72,122.92,122.9,2.44085652]
[1766049380129,0.72,122.93,122.9,2.44085652]
[1766049380721,0.72,122.93,122.89,2.50085652]
[1766049382045,0.72,122.94,122.9,2.44085652]
[1766049382228,8.13409151,122.94,122.9,2.50085652]
[1766049382415,0.72,122.93,122.9,2.50085652]
[1766049383046,0.72,122.93,122.9,2.44085652]
[1766049383836,0.72,122.93,122.9,2.50085652]
[1766049386249,8.13409151,122.94,122.91,0.06]
[1766049386250,0.72,122.94,122.91,0.06]
[1766049386548,0.72,122.94,122.9,2.50085652]
[1766049389171,0.72,122.94,122.9,0.06]
[1766049389466,0.72,122.94,122.9,2.50085652]
[1766049389766,0.72,122.94,122.91,2.44085652]
[1766049392055,8.85407678,122.94,122.91,2.44085652]
[1766049392254,0.72,122.93,122.91,2.44085652]
[1766049396843,0.72,122.93,122.9,11.42085652]
[1766049397337,0.72,122.93,122.9,11.36085652]
[1766049398055,0.72,122.93,122.9,11.42085652]
[1766049399840,0.72,122.93,122.9,11.36085652]
[1766049400158,0.72,122.93,122.9,11.42085652]
[1766049401761,0.72,122.93,122.91,2.44085652]
[1766049402059,8.13353385,122.95,122.92,2.44085652]
[1766049402238,8.79353385,122.95,122.93,2.44085652]
[1766049402658,0.66,122.94,122.92,2.50085652]
[1766049402965,0.66,122.94,122.91,8.92]
[1766049403258,0.66,122.93,122.91,8.92]
[1766049407364,0.66,122.93,122.9,12.93852948]
[1766049407563,0.66,122.93,122.9,21.85852948]
[1766049407969,0.66,122.93,122.9,21.79852948]
[1766049408160,8.13433654,122.94,122.91,0.06]
[1766049408360,8.13433654,122.94,122.92,0.06]
[1766049408741,0.66,122.93,122.91,2.44085652]
[1766049409663,0.66,122.93,122.91,11.36085652]
[1766049418559,0.66,122.94,122.91,11.42085652]
[1766049420357,0.66,122.94,122.91,11.36085652]
[1766049420570,8.13234952,122.97,122.94,0.06]
[1766049420878,5.48427037,122.97,122.95,11.42085652]
[1766049421080,6.14427037,122.97,122.95,11.36085652]
[1766049421464,0.66,122.96,122.95,8.92]
[1766049421661,0.66,122.97,122.95,8.92]
[1766049421865,0.66,122.97,122.95,11.36085652]
[1766049421866,6.14767312,122.97,122.95,11.36085652]
[1766049422063,0.66,122.97,122.95,11.36085652]
[1766049423585,8.13171577,122.98,122.95,11.36085652]
[1766049423586,8.79104644,122.99,122.96,2.50085652]
[1766049423773,8.79104644,122.99,122.97,2.44085652]
[1766049424684,0.66,122.98,122.97,2.44085652]
[1766049425080,28.45404519,123.01,122.97,2.44085652]
[1766049425281,5.47902512,123.0,122.97,2.44085652]
[1766049426490,5.47902512,123.0,122.97,3.15085652]
[1766049426672,8.12942037,123.01,122.96,10.43767296]
[1766049426673,5.47520088,123.01,122.96,10.43767296]
[1766049426995,14.26404502,123.02,122.99,3.15085652]
[1766049427177,0.66,123.01,122.99,3.15085652]
[1766049427492,0.66,123.0,122.97,2.44085652]
[1766049429495,8.13008703,123.0,122.97,2.44085652]
[1766049429797,0.67,122.99,122.97,2.44085652]
[1766049430172,0.67,122.99,122.97,3.12085652]
[1766049431095,0.67,122.99,122.98,2.44085652]
[1766049431470,8.13008703,123.0,122.98,2.44085652]
[1766049432581,28.45065842,123.02,122.98,2.44085652]
[1766049433403,28.45065842,123.02,122.98,3.81394955]
[1766049433602,0.69,123.0,122.98,3.81394955]
[1766049434701,8.82022706,123.0,122.98,3.81394955]
[1766049436497,0.69,123.0,122.96,8.92]
[1766049436697,0.69,123.0,122.96,3.81394955]
[1766049437975,0.69,123.0,122.96,4.52394955]
[1766049438598,0.69,122.98,122.96,4.52394955]
[1766049439201,0.69,122.98,122.96,4.52504783]
[1766049441803,0.69,122.98,122.96,0.71]
[1766049443497,0.69,122.98,122.96,4.52504783]
[1766049444605,8.13074233,122.99,122.97,4.52504783]
[1766049444791,8.82074233,122.99,122.97,4.52504783]
[1766049445398,8.82074233,122.99,122.97,3.81504783]
[1766049446706,8.82074233,122.99,122.96,4.52504783]
[1766049447089,8.82074233,122.99,122.97,0.71]
[1766049449805,8.82074233,122.99,122.96,4.52504783]
[1766049450523,0.69,122.99,122.95,12.73504783]
[1766049450723,0.69,122.99,122.95,13.44504783]
[1766049451315,0.69,122.99,122.96,0.71]
[1766049453010,8.82100417,122.99,122.96,4.52504783]
[1766049453306,0.69,122.98,122.96,4.52504783]
[1766049456622,8.13100417,122.99,122.97,0.71]
[1766049456797,8.13100417,122.99,122.97,4.52504783]
[1766049457118,8.82100417,122.99,122.97,4.52504783]
[1766049457897,8.82100417,122.99,122.97,0.71]
[1766049460320,8.13036861,123.0,122.97,3.81504783]
[1766049460512,14.29501373,123.0,122.98,0.71]
[1766049460822,8.82036861,123.0,122.97,4.52504783]
[1766049461507,0.69,122.99,122.96,4.52504783]
[1766049462110,0.69,122.99,122.96,3.81504783]
[1766049462513,0.69,122.99,122.96,4.52504783]
[1766049463032,0.69,122.99,122.97,0.71]
[1766049463400,0.69,122.99,122.97,4.52504783]
[1766049463713,0.71,123.0,122.98,0.71]
[1766049464223,14.3247206,123.0,122.98,0.71]
[1766049464420,8.84014893,123.0,122.98,0.71]
[1766049467920,8.84014893,123.0,122.97,4.52504783]
[1766049470114,8.84014408,123.0,122.97,4.52504783]
[1766049470637,0.71,122.99,122.96,4.52504783]
[1766049470806,8.13014408,123.0,122.96,4.52504783]
[1766049471132,6.20053166,122.99,122.96,4.52504783]
[1766049471329,0.71,122.99,122.96,4.52504783]
[1766049471529,28.45534733,123.0,122.97,0.71]
[1766049471703,10.65870844,123.02,122.96,3.81504783]
[1766049471704,8.83960067,123.01,122.99,0.71]
[1766049471909,8.83960067,123.01,122.98,4.52504783]
[1766049472209,8.12960067,123.01,122.98,4.52504783]
[1766049472407,8.83960067,123.01,122.98,4.52504783]
[1766049472813,8.83960067,123.01,122.98,0.71]
[1766049475205,0.71,123.0,122.98,0.71]
[1766049478333,0.71,122.99,122.96,4.52504783]
[1766049478532,8.84049897,123.0,122.97,0.71]
[1766049481334,8.84049897,123.0,122.97,4.52504783]
[1766049481629,8.13049897,123.0,122.98,0.71]
[1766049481832,8.12963856,123.01,122.98,0.71]
[1766049482131,31.56882623,123.03,123.0,0.71]
[1766049482314,30.85882623,123.03,123.0,0.71]
[1766049482512,0.71,123.02,123.0,0.71]
[1766049483239,8.83888922,123.02,123.0,0.71]
[1766049484127,8.83888922,123.02,123.0,4.52504783]
[1766049484327,0.71,123.01,122.99,0.71]
[1766049485342,0.71,123.01,122.99,4.52504783]
[1766049486840,8.12888922,123.02,122.99,4.52504783]
[1766049487029,8.12888922,123.02,123.0,0.71]
[1766049487030,13.61634003,123.02,123.0,0.71]
[1766049487229,13.61634003,123.02,123.0,4.52504783]
[1766049487824,14.32634003,123.02,123.0,4.52504783]
[1766049488025,8.83888922,123.02,123.0,4.52504783]
[1766049488222,8.83888922,123.02,122.99,3.81504783]
[1766049488553,6.19667142,123.01,122.98,4.52504783]
[1766049489328,6.19667142,123.01,122.99,0.71]
[1766049489528,0.71,123.0,122.96,4.52504783]
[1766049490047,0.71,123.0,122.97,0.71]
[1766049490645,8.13074233,122.99,122.97,0.71]
[1766049491045,8.84037861,123.0,122.97,0.71]
[1766049491351,8.13037861,123.0,122.98,0.71]
[1766049491550,13.61734264,123.0,122.98,0.71]
[1766049491752,5.48696403,123.0,122.99,0.71]
[1766049492043,8.8396278,123.01,122.99,0.71]
[1766049492347,8.1296278,123.01,122.99,0.71]
[1766049492532,14.27613946,123.01,122.99,0.71]
[1766049492833,8.7896278,123.01,122.99,0.71]
[1766049494431,8.7896278,123.01,122.98,0.71]
[1766049494650,0.66,123.0,122.98,0.71]
[1766049494832,8.1296278,123.01,122.98,0.71]
[1766049495031,14.27596112,123.01,122.98,0.71]
[1766049495243,8.7896278,123.01,122.98,0.71]
[1766049496248,28.45317873,123.01,122.95,24.43693235]
[1766049496456,6.1467768,123.0,122.97,3.15092292]
[1766049498051,0.66,123.0,122.97,3.15092292]
[1766049498725,0.66,123.0,122.95,11.25086784]
[1766049498726,13.61795801,123.0,122.95,11.25086784]
[1766049498927,0.66,122.99,122.95,3.15092292]
[1766049499232,0.66,122.99,122.96,0.71]
[1766049499432,5.48778131,122.99,122.96,0.71]
[1766049499631,6.14778131,122.99,122.96,0.71]
[1766049500767,14.2789914,122.99,122.96,0.71]
[1766049500938,8.79121009,122.99,122.96,0.71]
[1766049501766,0.66,122.98,122.96,0.71]
[1766049502759,8.79187906,122.98,122.95,0.71]
[1766049505247,8.79187906,122.98,122.95,3.15092292]
[1766049506461,8.79187906,122.98,122.95,3.15211257]
[1766049507380,8.79187906,122.98,122.96,0.71]
[1766049507663,8.79187906,122.98,122.95,3.15211257]
[1766049507961,0.66,123.0,122.97,3.15211257]
[1766049508165,6.1453888,123.0,122.98,0.71]
[1766049508386,6.1453888,123.0,122.97,3.15211257]
[1766049509281,0.66,122.99,122.97,3.15211257]
[1766049509480,0.66,122.99,122.96,2.44211257]
[1766049509657,0.66,122.99,122.96,0.71]
[1766049510892,8.79107927,122.99,122.96,0.71]
[1766049511458,8.79107927,122.99,122.96,3.15211257]
[1766049513285,0.66,122.99,122.96,3.15211257]
[1766049513670,8.7907575,122.99,122.96,3.15211257]
[1766049516387,0.7,122.99,122.97,3.16211257]
[1766049518390,8.83077323,122.99,122.97,3.16211257]
[1766049518558,8.83077323,122.99,122.96,2.44211257]
[1766049518765,0.7,122.98,122.96,3.16211257]
[1766049519586,8.83077323,122.99,122.96,3.16211257]
[1766049520572,0.7,122.98,122.96,0.72]
[1766049522499,0.69,122.99,122.96,3.13211257]
[1766049524872,0.69,122.99,122.97,0.69]
[1766049525072,8.82077073,122.99,122.97,3.13211257]
[1766049526401,0.69,122.99,122.97,3.13211257]
[1766049526597,0.69,123.0,122.97,3.13211257]
[1766049526778,0.69,123.0,122.98,0.69]
[1766049526971,6.1742646,123.0,122.98,0.69]
[1766049527502,5.4842646,123.0,122.98,3.13211257]
[1766049527704,6.1742646,123.0,122.98,3.13211257]
[1766049527992,6.1742646,123.0,122.98,0.69]
[1766049528202,0.69,122.99,122.97,0.69]
[1766049528576,8.82095276,122.99,122.97,0.69]
[1766049528877,0.69,122.98,122.96,12.05211257]
[1766049529198,8.13095276,122.99,122.96,12.05211257]
[1766049529376,8.82095276,122.99,122.96,12.05211257]
[1766049531382,0.69,122.99,122.97,3.13211257]
[1766049531580,8.82080566,122.99,122.97,3.13211257]
[1766049537105,0.69,122.99,122.97,3.13211257]
[1766049537291,8.13027227,123.0,122.97,2.44211257]
[1766049537488,14.30892915,123.0,122.98,0.69]
[1766049537694,8.82027227,123.0,122.97,3.13211257]
[1766049537894,8.82027227,123.0,122.98,0.69]
[1766049538292,8.82027227,123.0,122.97,3.13211257]
[1766049539804,0.69,123.0,122.97,0.69]
[1766049540011,0.69,123.0,122.96,12.05211257]
[1766049540012,0.69,122.99,122.96,12.05211257]
[1766049540315,0.69,122.99,122.96,3.13211257]
[1766049540892,0.69,122.99,122.96,2.44211257]
[1766049541098,0.69,122.99,122.96,3.13211257]
[1766049542787,8.82088378,122.99,122.96,2.44211257]
[1766049542993,8.13088378,122.99,122.96,3.13211257]
[1766049543195,8.82088378,122.99,122.96,3.13211257]
[1766049543802,8.82088378,122.99,122.96,2.44211257]
[1766049544113,8.82088378,122.99,122.97,0.69]
[1766049546711,0.69,122.98,122.95,11.36211257]
[1766049546901,0.69,122.98,122.96,0.69]
[1766049547925,0.69,122.98,122.95,0.69]
[1766049548623,0.69,122.97,122.95,0.69]
[1766049550423,8.82217662,122.97,122.95,0.69]
[1766049550610,0.69,122.96,122.94,9.61]
[1766049550921,0.69,122.97,122.95,2.44211257]
[1766049551225,0.69,122.97,122.95,3.13211257]
[1766049551628,0.69,122.97,122.95,0.69]
[1766049552122,0.69,122.97,122.95,3.13211257]
[1766049554059,0.69,122.97,122.95,0.69]
[1766049554322,0.69,122.97,122.95,3.13211257]
[1766049554924,0.69,122.97,122.95,0.69]
[1766049555124,0.69,122.97,122.95,3.13211257]
[1766049555622,0.69,122.97,122.95,4.50560898]
[1766049557848,0.66,122.99,122.96,3.81560898]
[1766049558016,8.78967575,123.01,122.98,0.68]
[1766049558215,6.14799819,123.0,122.98,0.68]
[1766049558616,6.14799819,123.0,122.97,4.49560898]
[1766049559010,14.27810792,123.0,122.97,4.49560898]
[1766049559211,0.66,122.99,122.96,4.49560898]
[1766049560016,0.66,122.99,122.95,4.49560898]
[1766049560217,0.66,122.99,122.95,13.41560898]
[1766049560439,0.66,122.98,122.95,13.41560898]
[1766049562635,8.79143545,122.98,122.95,0.68]
[1766049562836,0.66,122.97,122.95,8.92]
[1766049563337,8.13143545,122.98,122.95,9.6]
[1766049563543,8.79143545,122.98,122.95,9.6]
[1766049563912,8.79143545,122.98,122.95,13.41560898]
[1766049564244,8.79143545,122.98,122.95,9.6]
[1766049564440,8.79143545,122.98,122.95,13.41560898]
[1766049565815,8.79143545,122.98,122.95,9.6]
[1766049572041,0.66,122.97,122.93,4.49560898]
[1766049572241,0.66,122.97,122.94,8.92]
[1766049572759,0.66,122.96,122.94,9.6]
[1766049575448,8.79278095,122.96,122.94,9.6]
[1766049576248,8.79278095,122.96,122.94,13.41641846]
[1766049578252,28.2593239,122.99,122.94,12.73641846]
[1766049578560,0.66,122.97,122.95,0.68]
[1766049583259,28.45796681,122.99,122.95,0.68]
[1766049583447,29.12796681,122.99,122.96,0.68]
[1766049583642,0.67,122.98,122.96,0.68]
[1766049583980,0.67,122.98,122.95,4.49641846]
[1766049584881,0.67,122.98,122.95,0.68]
[1766049585567,8.80161924,122.98,122.95,0.68]
[1766049585874,0.67,122.97,122.95,0.68]
[1766049587253,0.67,122.97,122.94,13.41641846]
[1766049587441,0.67,122.96,122.94,13.41641846]
[1766049587640,0.67,122.96,122.94,8.92]
[1766049589274,8.80319105,122.96,122.94,8.92]
[1766049592483,0.67,122.96,122.94,8.92]
[1766049594271,0.68,122.95,122.91,0.68]
[1766049594446,0.68,122.93,122.9,8.92]
[1766049594646,0.68,122.92,122.89,13.41641846]
[1766049594865,0.68,122.92,122.89,9.6]
[1766049595357,0.68,122.92,122.89,8.92]
[1766049595770,0.68,122.91,122.89,8.92]
[1766049596370,8.8162347,122.91,122.89,9.6]
[1766049597155,8.13566097,122.92,122.89,9.6]
[1766049597357,8.81566097,122.92,122.89,13.41641846]
[1766049598069,8.13566097,122.92,122.89,13.41641846]
[1766049598383,0.68,122.91,122.89,13.41641846]
[1766049600082,0.68,122.91,122.89,9.6]
[1766049600282,0.68,122.91,122.89,13.41641846]
[1766049600883,8.81474545,122.93,122.91,0.68]
[1766049602685,8.13474545,122.93,122.91,0.68]
[1766049603072,8.81474545,122.93,122.91,0.68]
[1766049605068,8.81474545,122.93,122.9,4.49641846]
[1766049605977,8.81474545,122.93,122.9,0.68]
[1766049609789,8.13439478,122.94,122.91,0.68]
[1766049609998,8.13439478,122.94,122.92,0.68]
[1766049610176,8.81439478,122.94,122.92,0.68]
[1766049610783,8.81439478,122.94,122.91,4.49641846]
[1766049611102,8.13439478,122.94,122.92,0.68]
[1766049611403,8.81439478,122.94,122.92,0.68]
[1766049611610,29.14802392,122.95,122.92,0.68]
[1766049611789,8.13338755,122.95,122.92,0.68]
[1766049611978,8.81338755,122.95,122.92,0.68]
[1766049612179,0.68,122.95,122.93,0.71]
[1766049616008,8.85301307,122.96,122.93,0.71]
[1766049619077,8.13301307,122.96,122.93,0.71]
[1766049619304,8.85343615,122.95,122.93,0.71]
[1766049619800,8.85343615,122.95,122.89,17.05728681]
[1766049619801,0.72,122.94,122.91,3.10303414]
[1766049620008,0.72,122.94,122.91,0.66]
[1766049620204,0.72,122.94,122.91,3.10303414]
[1766049620391,0.72,122.94,122.91,2.44303414]
[1766049620583,0.72,122.94,122.92,0.66]
[1766049622807,8.85343615,122.95,122.92,3.10303414]
[1766049624135,0.72,122.95,122.92,3.10303414]
[1766049625906,0.72,122.95,122.92,0.66]
[1766049626514,8.85380251,122.95,122.92,0.66]
[1766049629197,8.13380251,122.95,122.92,0.66]
[1766049629395,0.72,122.94,122.92,0.66]
[1766049629594,8.13380251,122.95,122.92,0.66]
[1766049629795,8.85380251,122.95,122.92,0.66]
[1766049629996,8.85380251,122.95,122.93,0.7]
[1766049632020,8.85380251,122.95,122.92,3.14303414]
[1766049632221,0.7,122.94,122.92,3.14303414]
[1766049633620,0.7,122.95,122.92,3.14303414]
[1766049633820,6.17952008,122.95,122.92,3.14303414]
[1766049635318,6.17952008,122.95,122.92,2.44303414]
[1766049635622,8.83360448,122.95,122.93,0.68]
[1766049636421,8.79360448,122.95,122.93,0.68]
[1766049641239,8.13360448,122.95,122.93,0.68]
[1766049641525,6.86278291,122.98,122.94,2.4432669]
[1766049641733,6.86278291,122.98,122.96,0.67]
[1766049641734,8.79140348,122.98,122.96,0.67]
[1766049642930,0.68,122.97,122.94,3.1132669]
[1766049643528,0.68,122.97,122.94,2.4432669]
[1766049643728,0.68,122.97,122.95,0.67]
[1766049643913,8.81140348,122.98,122.95,0.67]
[1766049644114,8.13140348,122.98,122.95,0.67]
[1766049644526,8.13140348,122.98,122.95,2.4432669]
[1766049644725,8.13140348,122.98,122.96,0.67]
[1766049645831,8.13140348,122.98,122.95,3.1132669]
[1766049646214,0.68,122.97,122.95,3.1132669]
[1766049647139,8.13140348,122.98,122.95,3.1132669]
[1766049647536,0.68,122.97,122.94,0.67]
[1766049647837,0.68,122.97,122.94,3.1132669]
[1766049648037,0.68,122.97,122.95,2.4432669]
[1766049653342,0.68,122.97,122.95,3.1132669]
[1766049653721,0.68,122.97,122.95,2.4432669]
[1766049656422,8.81206803,122.97,122.95,2.4432669]
[1766049658532,8.81206803,122.97,122.95,3.1132669]
[1766049660324,0.68,122.98,122.95,3.1132669]
[1766049660953,0.68,122.98,122.96,2.4432669]
[1766049662333,8.81169429,122.98,122.96,2.4432669]
[1766049664948,8.81169429,122.98,122.95,3.1132669]
[1766049666950,8.81108163,122.99,122.97,0.67]
[1766049667151,8.81108163,122.99,122.97,3.1132669]
[1766049667357,8.81108163,122.99,122.97,0.67]
[1766049667726,8.81108163,122.99,122.96,3.1132669]
[1766049668754,8.81108163,122.99,122.96,2.4432669]
[1766049668962,8.8100813,123.0,122.97,3.1132669]
[1766049669527,0.68,122.99,122.97,3.1132669]
[1766049671472,0.68,122.98,122.95,0.67]
[1766049671758,0.68,122.98,122.94,24.44091409]
[1766049671759,0.68,122.99,122.94,24.44091409]
[1766049672056,0.66,122.96,122.92,2.4432669]
[1766049672638,10.43767296,122.95,122.92,2.4432669]
[1766049672839,0.66,122.94,122.92,3.1132669]
[1766049673463,0.66,122.94,122.91,12.0332669]
[1766049673649,0.66,122.94,122.92,0.67]
[1766049675175,0.66,122.94,122.92,3.1132669]
[1766049675341,10.43767296,122.99,122.92,3.1132669]
[1766049675540,2.4432669,122.97,122.92,0.67]
[1766049675864,10.43767296,122.96,122.92,3.1132669]
[1766049676372,10.43767296,122.96,122.93,0.71]
[1766049676976,10.43767296,122.96,122.93,3.1532669]
[1766049677137,8.13238208,122.97,122.93,2.4432669]
[1766049677344,0.66,122.96,122.93,3.81683539]
[1766049679054,0.66,122.96,122.93,4.43683539]
[1766049679263,0.66,122.96,122.93,13.35683539]
[1766049679969,0.66,122.96,122.94,3.81683539]
[1766049680158,0.66,122.97,122.95,4.43683539]
[1766049680362,0.66,122.97,122.94,4.43683539]
[1766049680563,0.66,122.97,122.94,3.81683539]
[1766049681555,0.66,122.97,122.94,4.43683539]
[1766049682383,0.68,122.96,122.94,4.43683539]
[1766049686485,17.05170747,122.98,122.94,3.81683539]
[1766049686486,0.68,122.97,122.94,3.81683539]
[1766049686797,0.68,122.97,122.94,4.43683539]
[1766049687684,8.13215263,122.97,122.94,0.62]
[1766049688005,0.68,122.96,122.94,4.43683539]
[1766049688808,8.81215263,122.97,122.94,4.43683539]
[1766049688970,0.68,122.96,122.94,4.43683539]
[1766049692405,0.68,122.96,122.93,13.35683539]
[1766049692590,0.68,122.95,122.93,13.35683539]
[1766049692992,0.68,122.95,122.93,8.92]
[1766049694094,0.68,122.94,122.9,29.01173937]
[1766049694277,0.68,122.94,122.91,12.73683539]
[1766049694477,0.68,122.94,122.92,0.62]
[1766049694678,0.68,122.94,122.92,4.43683539]
[1766049695078,0.68,122.94,122.92,3.81683539]
[1766049695799,0.68,122.94,122.91,13.35683539]
[1766049696493,0.68,122.94,122.92,0.62]
[1766049696786,0.68,122.94,122.92,4.43683539]
[1766049699299,0.68,122.94,122.91,9.54]
[1766049699498,0.68,122.94,122.92,0.62]
[1766049699703,0.68,122.94,122.92,4.43683539]
[1766049700596,16.2664502,122.96,122.93,3.81683539]
[1766049700905,0.68,122.95,122.93,3.81683539]
[1766049704789,0.68,122.95,122.92,4.43683539]
[1766049707408,0.68,122.95,122.92,4.43715622]
[1766049707705,0.68,122.95,122.94,3.81715622]
[1766049707886,0.68,122.95,122.94,12.73715622]
[1766049712505,26.70594169,122.98,122.94,12.73715622]
[1766049712689,18.56875041,122.99,122.95,3.81715622]
[1766049713004,8.13036418,123.0,122.97,3.81715622]